Workbook

Sheet Main
A1: Finite Difference Solution - 2D Seepage
A2: CE En 544 - Brigham Young University
C4: Head 1: | G4: Head 1: | H4: 11.1 | I4: ="[" & lunit & "]" -> [m] | L4: Length unit: | M4: m
C5: Head 2: | G5: Head 2: | H5: 7.5 | I5: ="[" & lunit & "]" -> [m] | L5: Time unit: | M5: day | Q5: Arrow size: | R5: 20
C6: Active: | G6: Cell Size: | H6: 1.25 | I6: ="[" & lunit & "]" -> [m] | Q6: Arrow color:
C7: Background:
A10: Y | B10: =B11+cellsize -> 31.25
B11: 30
B12: 28.75
B13: 27.5
B14: 26.25
B15: 25
B16: 23.75
B17: 22.5
B18: 21.25
B19: 20 | C19: =H_1 -> 11.1 | D19: =H_1 -> 11.1 | E19: =H_1 -> 11.1 | F19: =H_1 -> 11.1 | G19: =H_1 -> 11.1 | H19: =H_1 -> 11.1 | I19: =H_1 -> 11.1 | J19: =H_1 -> 11.1 | K19: =H_1 -> 11.1 | L19: =H_1 -> 11.1 | M19: =(M20 + 0.5*L19 + 0.5*N19)/2 -> 10.52896014 | N19: =(N20 + 0.5*M19 + 0.5*O19)/2 -> 10.15702683 | O19: =(O20 + 0.5*N19 + 0.5*P19)/2 -> 9.851241033 | P19: =(P20 + 0.5*O19 + 0.5*Q19)/2 -> 9.570935505 | Q19: =(Q20 + 0.5*P19 + 0.5*R19)/2 -> 9.299992393 | R19: =(R20 + 0.5*Q19 + 0.5*S19)/2 -> 9.029049713 | S19: =(S20 + 0.5*R19 + 0.5*T19)/2 -> 8.748745512 | T19: =(T20 + 0.5*S19 + 0.5*U19)/2 -> 8.442962083 | U19: =(U20 + 0.5*T19 + 0.5*V19)/2 -> 8.071032676 | V19: =H_2 -> 7.5 | W19: =H_2 -> 7.5 | X19: =H_2 -> 7.5 | Y19: =H_2 -> 7.5 | Z19: =H_2 -> 7.5 | AA19: =H_2 -> 7.5 | AB19: =H_2 -> 7.5 | AC19: =H_2 -> 7.5 | AD19: =H_2 -> 7.5 | AE19: =H_2 -> 7.5
B20: 18.75 | C20: =(0.5*C19 + 0.5*C21 + D20)/2 -> 11.05746116 | D20: =(D19 + D21 + C20 + E20)/4 -> 11.05596073 | E20: =(E19 + E21 + D20 + F20)/4 -> 11.05132568 | F20: =(F19 + F21 + E20 + G20)/4 -> 11.04312461 | G20: =(G19 + G21 + F20 + H20)/4 -> 11.03051912 | H20: =(H19 + H21 + G20 + I20)/4 -> 11.01199991 | I20: =(I19 + I21 + H20 + J20)/4 -> 10.98475178 | J20: =(J19 + J21 + I20 + K20)/4 -> 10.94300476 | K20: =(K19 + K21 + J20 + L20)/4 -> 10.8733028 | L20: =(L19 + L21 + K20 + M20)/4 -> 10.73942667 | M20: =(M19 + M21 + L20 + N20)/4 -> 10.42940702 | N20: =(N19 + N21 + M20 + O20)/4 -> 10.12395327 | O20: =(O19 + O21 + N20 + P20)/4 -> 9.83850111 | P20: =(P19 + P21 + O20 + Q20)/4 -> 9.566254521 | Q20: =(Q19 + Q21 + P20 + R20)/4 -> 9.299992402 | R20: =(R19 + R21 + Q20 + S20)/4 -> 9.033730685 | S20: =(S19 + S21 + R20 + T20)/4 -> 8.761485313 | T20: =(T19 + T21 + S20 + U20)/4 -> 8.476035217 | U20: =(U19 + U21 + T20 + V20)/4 -> 8.170584393 | V20: =(V19 + V21 + U20 + W20)/4 -> 7.860568226 | W20: =(W19 + W21 + V20 + X20)/4 -> 7.726693583 | X20: =(X19 + X21 + W20 + Y20)/4 -> 7.656992404 | Y20: =(Y19 + Y21 + X20 + Z20)/4 -> 7.615245864 | Z20: =(Z19 + Z21 + Y20 + AA20)/4 -> 7.587998057 | AA20: =(AA19 + AA21 + Z20 + AB20)/4 -> 7.569479089 | AB20: =(AB19 + AB21 + AA20 + AC20)/4 -> 7.556873757 | AC20: =(AC19 + AC21 + AB20 + AD20)/4 -> 7.548672797 | AD20: =(AD19 + AD21 + AC20 + AE20)/4 -> 7.544037816 | AE20: =(0.5*AE19 + 0.5*AE21 + AD20)/2 -> 7.542537408
B21: 17.5 | C21: =(0.5*C20 + 0.5*C22 + D21)/2 -> 11.01792323 | D21: =(D20 + D22 + C21 + E21)/4 -> 11.01505612 | E21: =(E20 + E22 + D21 + F21)/4 -> 11.00621745 | F21: =(F20 + F22 + E21 + G21)/4 -> 10.99065371 | G21: =(G20 + G22 + F21 + H21)/4 -> 10.96695199 | H21: =(H20 + H22 + G21 + I21)/4 -> 10.93272883 | I21: =(I20 + I22 + H21 + J21)/4 -> 10.88400253 | J21: =(J20 + J22 + I21 + K21)/4 -> 10.81396455 | K21: =(K20 + K22 + J21 + L21)/4 -> 10.71077989 | L21: =(L20 + L22 + K21 + M21)/4 -> 10.55499704 | M21: =(M20 + M22 + L21 + N21)/4 -> 10.32528821 | N21: =(N20 + N22 + M21 + O21)/4 -> 10.07087837 | O21: =(O20 + O22 + N21 + P21)/4 -> 9.81255591 | P21: =(P20 + P22 + O21 + Q21)/4 -> 9.555589369 | Q21: =(Q20 + Q22 + P21 + R21)/4 -> 9.299992309 | R21: =(R20 + R22 + Q21 + S21)/4 -> 9.044395595 | S21: =(S20 + S22 + R21 + T21)/4 -> 8.787430084 | T21: =(T20 + T22 + S21 + U21)/4 -> 8.529109282 | U21: =(U20 + U22 + T21 + V21)/4 -> 8.274701599 | V21: =(V20 + V22 + U21 + W21)/4 -> 8.044995038 | W21: =(W20 + W22 + V21 + X21)/4 -> 7.889213788 | X21: =(X20 + X22 + W21 + Y21)/4 -> 7.786030238 | Y21: =(Y20 + Y22 + X21 + Z21)/4 -> 7.715993052 | Z21: =(Z20 + Z22 + Y21 + AA21)/4 -> 7.667267327 | AA21: =(AA20 + AA22 + Z21 + AB21)/4 -> 7.633044589 | AB21: =(AB20 + AB22 + AA21 + AC21)/4 -> 7.609343182 | AC21: =(AC20 + AC22 + AB21 + AD21)/4 -> 7.593779652 | AD21: =(AD20 + AD22 + AC21 + AE21)/4 -> 7.584941097 | AE21: =(0.5*AE20 + 0.5*AE22 + AD21)/2 -> 7.582074023
B22: 16.25 | C22: =(0.5*C21 + 0.5*C23 + D22)/2 -> 10.98411964 | D22: =(D21 + D23 + C22 + E22)/4 -> 10.98012315 | E22: =(E21 + E23 + D22 + F22)/4 -> 10.96783435 | F22: =(F21 + F23 + E22 + G22)/4 -> 10.94632086 | G22: =(G21 + G23 + F22 + H22)/4 -> 10.91390641 | H22: =(H21 + H23 + G22 + I22)/4 -> 10.86796099 | I22: =(I21 + I23 + H22 + J22)/4 -> 10.80456507 | J22: =(J21 + J23 + I22 + K22)/4 -> 10.71807117 | K22: =(K21 + K23 + J22 + L22)/4 -> 10.60085536 | L22: =(L21 + L23 + K22 + M22)/4 -> 10.44449358 | M22: =(M21 + M23 + L22 + N22)/4 -> 10.24587065 | N22: =(N21 + N23 + M22 + O22)/4 -> 10.02171639 | O22: =(O21 + O23 + N22 + P22)/4 -> 9.785255086 | P22: =(P21 + P23 + O22 + Q22)/4 -> 9.543555047 | Q22: =(Q21 + Q23 + P22 + R22)/4 -> 9.299992172 | R22: =(R21 + R23 + Q22 + S22)/4 -> 9.056429591 | S22: =(S21 + S23 + R22 + T22)/4 -> 8.814730409 | T22: =(T21 + T23 + S22 + U22)/4 -> 8.578270453 | U22: =(U21 + U23 + T22 + V22)/4 -> 8.354117869 | V22: =(V21 + V23 + U22 + W22)/4 -> 8.155496689 | W22: =(W21 + W23 + V22 + X22)/4 -> 7.99913642 | X22: =(X21 + X23 + W22 + Y22)/4 -> 7.881921813 | Y22: =(Y21 + Y23 + X22 + Z22)/4 -> 7.795428872 | Z22: =(Z21 + Z23 + Y22 + AA22)/4 -> 7.732033687 | AA22: =(AA21 + AA23 + Z22 + AB22)/4 -> 7.686088828 | AB22: =(AB21 + AB23 + AA22 + AC22)/4 -> 7.653674793 | AC22: =(AC21 + AC23 + AB22 + AD22)/4 -> 7.632161594 | AD22: =(AD21 + AD23 + AC22 + AE22)/4 -> 7.619872953 | AE22: =(0.5*AE21 + 0.5*AE23 + AD22)/2 -> 7.615876523
B23: 15 | C23: =(0.5*C22 + 0.5*C24 + D23)/2 -> 10.95830914 | D23: =(D22 + D24 + C23 + E23)/4 -> 10.95348261 | E23: =(E22 + E24 + D23 + F23)/4 -> 10.93867603 | F23: =(F22 + F24 + E23 + G23)/4 -> 10.9128891 | G23: =(G22 + G24 + F23 + H23)/4 -> 10.87439193 | H23: =(H22 + H24 + G23 + I23)/4 -> 10.82064379 | I23: =(I22 + I24 + H23 + J23)/4 -> 10.74822573 | J23: =(J22 + J24 + I23 + K23)/4 -> 10.6528999 | K23: =(K22 + K24 + J23 + L23)/4 -> 10.53007698 | L23: =(L22 + L24 + K23 + M23)/4 -> 10.37625151 | M23: =(M22 + M24 + L23 + N23)/4 -> 10.19198468 | N23: =(N22 + N24 + M23 + O23)/4 -> 9.984861728 | O23: =(O22 + O24 + N23 + P23)/4 -> 9.763193308 | P23: =(P22 + P24 + O23 + Q23)/4 -> 9.533383874 | Q23: =(Q22 + Q24 + P23 + R23)/4 -> 9.299992053 | R23: =(R22 + R24 + Q23 + S23)/4 -> 9.066600484 | S23: =(S22 + S24 + R23 + T23)/4 -> 8.836791781 | T23: =(T22 + T24 + S23 + U23)/4 -> 8.615124494 | U23: =(U22 + U24 + T23 + V23)/4 -> 8.408002946 | V23: =(V22 + V24 + U23 + W23)/4 -> 8.223737608 | W23: =(W22 + W24 + V23 + X23)/4 -> 8.069913543 | X23: =(X22 + X24 + W23 + Y23)/4 -> 7.947091856 | Y23: =(Y22 + Y24 + X23 + Z23)/4 -> 7.851767051 | Z23: =(Z22 + Z24 + Y23 + AA23)/4 -> 7.779349822 | AA23: =(AA22 + AA24 + Z23 + AB23)/4 -> 7.725602334 | AB23: =(AB22 + AB24 + AA23 + AC23)/4 -> 7.687105651 | AC23: =(AC22 + AC24 + AB23 + AD23)/4 -> 7.661319054 | AD23: =(AD22 + AD24 + AC23 + AE23)/4 -> 7.646512673 | AE23: =(0.5*AE22 + 0.5*AE24 + AD23)/2 -> 7.641686202
B24: 13.75 | C24: =(0.5*C23 + 0.5*C25 + D24)/2 -> 10.94215188 | D24: =(D23 + D25 + C24 + E24)/4 -> 10.93682223 | E24: =(E23 + E25 + D24 + F24)/4 -> 10.92049819 | F24: =(F23 + F25 + E24 + G24)/4 -> 10.89216769 | G24: =(G23 + G25 + F24 + H24)/4 -> 10.85012854 | H24: =(H23 + H25 + G24 + I24)/4 -> 10.79199665 | I24: =(I23 + I25 + H24 + J24)/4 -> 10.71479433 | J24: =(J23 + J25 + I24 + K24)/4 -> 10.6152259 | K24: =(K23 + K25 + J24 + L24)/4 -> 10.49030138 | L24: =(L23 + L25 + K24 + M24)/4 -> 10.33845106 | M24: =(M23 + M25 + L24 + N24)/4 -> 10.16095511 | N24: =(N23 + N25 + M24 + O24)/4 -> 9.962552836 | O24: =(O23 + O25 + N24 + P24)/4 -> 9.749272854 | P24: =(P23 + P25 + O24 + Q24)/4 -> 9.526795405 | Q24: =(Q23 + Q25 + P24 + R24)/4 -> 9.299991995 | R24: =(R23 + R25 + Q24 + S24)/4 -> 9.073188813 | S24: =(S23 + S25 + R24 + T24)/4 -> 8.85071202 | T24: =(T23 + T25 + S24 + U24)/4 -> 8.637433051 | U24: =(U23 + U25 + T24 + V24)/4 -> 8.439032041 | V24: =(V23 + V25 + U24 + W24)/4 -> 8.261537452 | W24: =(W23 + W25 + V24 + X24)/4 -> 8.109688461 | X24: =(X23 + X25 + W24 + Y24)/4 -> 7.984765164 | Y24: =(Y23 + Y25 + X24 + Z24)/4 -> 7.885197785 | Z24: =(Z23 + Z25 + Y24 + AA24)/4 -> 7.807996332 | AA24: =(AA23 + AA25 + Z24 + AB24)/4 -> 7.749865139 | AB24: =(AB23 + AB25 + AA24 + AC24)/4 -> 7.707826518 | AC24: =(AC23 + AC25 + AB24 + AD24)/4 -> 7.679496389 | AD24: =(AD23 + AD25 + AC24 + AE24)/4 -> 7.663172566 | AE24: =(0.5*AE23 + 0.5*AE25 + AD24)/2 -> 7.657842984
B25: 12.5 | C25: =(0.5*C24 + 0.5*D25) -> 10.93665409 | D25: =(D24 + 0.5*C25 + 0.5*E25)/2 -> 10.93115635 | E25: =(E24 + 0.5*D25 + 0.5*F25)/2 -> 10.91432694 | F25: =(F24 + 0.5*E25 + 0.5*G25)/2 -> 10.88515508 | G25: =(G24 + 0.5*F25 + 0.5*H25)/2 -> 10.84195805 | H25: =(H24 + 0.5*G25 + 0.5*I25)/2 -> 10.78242012 | I25: =(I24 + 0.5*H25 + 0.5*J25)/2 -> 10.70372922 | J25: =(J24 + 0.5*I25 + 0.5*K25)/2 -> 10.60290818 | K25: =(K24 + 0.5*J25 + 0.5*L25)/2 -> 10.47745183 | L25: =(L24 + 0.5*K25 + 0.5*M25)/2 -> 10.32629648 | M25: =(M24 + 0.5*L25 + 0.5*N25)/2 -> 10.15083213 | N25: =(N24 + 0.5*M25 + 0.5*O25)/2 -> 9.955121956 | O25: =(O24 + 0.5*N25 + 0.5*P25)/2 -> 9.74455018 | P25: =(P24 + 0.5*O25 + 0.5*Q25)/2 -> 9.524533214 | Q25: =(Q24 + 0.5*P25 + 0.5*R25)/2 -> 9.299992026 | R25: =(R24 + 0.5*Q25 + 0.5*S25)/2 -> 9.075451055 | S25: =(S24 + 0.5*R25 + 0.5*T25)/2 -> 8.855434717 | T25: =(T24 + 0.5*S25 + 0.5*U25)/2 -> 8.644863911 | U25: =(U24 + 0.5*T25 + 0.5*V25)/2 -> 8.449154947 | V25: =(V24 + 0.5*U25 + 0.5*W25)/2 -> 8.273691904 | W25: =(W24 + 0.5*V25 + 0.5*X25)/2 -> 8.122537863 | X25: =(X24 + 0.5*W25 + 0.5*Y25)/2 -> 7.997082712 | Y25: =(Y24 + 0.5*X25 + 0.5*Z25)/2 -> 7.89626273 | Z25: =(Z24 + 0.5*Y25 + 0.5*AA25)/2 -> 7.817572704 | AA25: =(AA24 + 0.5*Z25 + 0.5*AB25)/2 -> 7.758035481 | AB25: =(AB24 + 0.5*AA25 + 0.5*AC25)/2 -> 7.714838994 | AC25: =(AC24 + 0.5*AB25 + 0.5*AD25)/2 -> 7.685667509 | AD25: =(AD24 + 0.5*AC25 + 0.5*AE25)/2 -> 7.668838311 | AE25: =(0.5*AE24 + 0.5*AD25) -> 7.663340648
B26: 11.25
B27: 10
B28: 8.75
B29: 7.5
B30: 6.25
B31: 5
B32: 3.75
B33: 2.5
B34: 1.25
B35: 0
C36: 0 | D36: =C36+cellsize -> 1.25 | E36: 2.5 | F36: 3.75 | G36: 5 | H36: 6.25 | I36: 7.5 | J36: 8.75 | K36: 10 | L36: 11.25 | M36: 12.5 | N36: 13.75 | O36: 15 | P36: 16.25 | Q36: 17.5 | R36: 18.75 | S36: 20 | T36: 21.25 | U36: 22.5 | V36: 23.75 | W36: 25 | X36: 26.25 | Y36: 27.5 | Z36: 28.75 | AA36: 30 | AB36: 31.25 | AC36: 32.5 | AD36: 33.75 | AE36: 35 | AF36: 36.25
C37: X

Sheet Gradient
A1: Hydraulic Gradient
K2: Critical gradient: | L2: 0.2 | M2: ="[" & lunit & "/" & tunit & "]" -> [m/day]
D6: Max gradient: | E6: =MAX(C10:AF35) -> 0.3860005932 | F6: ="[" & lunit & "/" & tunit & "]" -> [m/day]
A10: Y | B10: =B11+cellsize -> 31.25
B11: 30
B12: 28.75
B13: 27.5
B14: 26.25
B15: 25
B16: 23.75
B17: 22.5
B18: 21.25
B19: 20 | C19: 0.03416827327 | D19: 0.03536929844 | E19: 0.03908211306 | F19: 0.04565205032 | G19: 0.05575035437 | H19: 0.07058553357 | I19: 0.0924120375 | J19: 0.1258509039 | K19: 0.1816795961 | L19: 0.3684909523 | M19: 0.3860005932 | N19: 0.2726413469 | O19: 0.2348063392 | P19: 0.220594261 | Q19: 0.2167422511 | R19: 0.2204455799 | S19: 0.2344930725 | T19: 0.2721064619 | U19: 0.3850347449 | V19: 0.3674376822 | W19: 0.1810681937 | X19: 0.1253712888 | Y19: 0.09201360042 | Z19: 0.07024234595 | AA19: 0.05544646984 | AB19: 0.04537605405 | AC19: 0.03882484499 | AD19: 0.03512276946 | AE19: 0.03392506047
B20: 18.75 | C20: 0.03298372847 | D20: 0.03419770485 | E20: 0.037998731 | F20: 0.04466768613 | G20: 0.05481344 | H20: 0.06954359534 | I20: 0.09090106413 | J20: 0.123029908 | K20: 0.1759925044 | L20: 0.2815674184 | M20: 0.2596199642 | N20: 0.2390735832 | O20: 0.2237466712 | P20: 0.2155481985 | Q20: 0.2129974642 | R20: 0.2154108738 | S20: 0.2234670722 | T20: 0.2386411718 | U20: 0.2590254043 | V20: 0.2807822742 | W20: 0.1754303669 | X20: 0.1225808439 | Y20: 0.09052414911 | Z20: 0.06921744391 | AA20: 0.05452409276 | AB20: 0.04440462193 | AC20: 0.0377532489 | AD20: 0.03396219441 | AE20: 0.03275128122
B21: 17.5 | C21: 0.0295407993 | D21: 0.03080912227 | E21: 0.03491181296 | F21: 0.04191069563 | G21: 0.05221896148 | H21: 0.06663832628 | I21: 0.0864946499 | J21: 0.1137593632 | K21: 0.1505835174 | L21: 0.1944046826 | M21: 0.2073142869 | N21: 0.2092963488 | O21: 0.2073208147 | P21: 0.2052739218 | Q21: 0.2044652588 | R21: 0.2051555348 | S21: 0.2070865957 | T21: 0.2089532722 | U21: 0.2068784371 | V21: 0.1939066948 | W21: 0.1501428738 | X21: 0.1133816974 | Y21: 0.08616942197 | Z21: 0.0663545025 | AA21: 0.05196680245 | AB21: 0.04168151531 | AC21: 0.03469772528 | AD21: 0.03060315868 | AE21: 0.02933724121
B22: 16.25 | C22: 0.02414966966 | D22: 0.02556663011 | E22: 0.03030348797 | F22: 0.03795195698 | G22: 0.04861846895 | H22: 0.06275562146 | I22: 0.08103560693 | J22: 0.1040327625 | K22: 0.1313204789 | L22: 0.159158642 | M22: 0.1774806238 | N22: 0.1875608156 | O22: 0.1923673248 | P22: 0.19434601 | Q22: 0.1948376834 | R22: 0.1942465366 | S22: 0.1921744548 | T22: 0.1872876418 | U22: 0.1771488432 | V22: 0.1588002726 | W22: 0.1309815947 | X22: 0.1037300077 | Y22: 0.0807706245 | Z22: 0.06252440224 | AA22: 0.04841499133 | AB22: 0.03776930514 | AC22: 0.03013422364 | AD22: 0.02540366241 | AE22: 0.02398824742
B23: 15 | C23: 0.01728626852 | D23: 0.01907764436 | E23: 0.02500556181 | F23: 0.03369091684 | G23: 0.0449388266 | H23: 0.05900152698 | I23: 0.07620982432 | J23: 0.09659279562 | K23: 0.1193015363 | L23: 0.1418696562 | M23: 0.1603248201 | N23: 0.173244911 | O23: 0.1812336657 | P23: 0.1854316045 | Q23: 0.1867006428 | R23: 0.1853472813 | S23: 0.1810724367 | T23: 0.1730215782 | U23: 0.1600609736 | V23: 0.1415914816 | W23: 0.1190345524 | X23: 0.09635123897 | Y23: 0.07599867152 | Z23: 0.0588204197 | AA23: 0.04478461438 | AB23: 0.03355868389 | AC23: 0.02488857606 | AD23: 0.01896743207 | AE23: 0.01717694456
B24: 13.75 | C24: 0.009681665969 | D24: 0.01246817304 | E24: 0.02037915152 | F24: 0.03030100176 | G24: 0.04217555163 | H24: 0.05632473958 | I24: 0.07300159259 | J24: 0.09209737898 | K24: 0.1128036307 | L24: 0.1333585421 | M24: 0.1513638223 | N24: 0.1651898808 | O24: 0.1745221603 | P24: 0.1797721105 | Q24: 0.1814298173 | R24: 0.1796974003 | S24: 0.1743805141 | T24: 0.1649962337 | U24: 0.1511385461 | V24: 0.1331239414 | W24: 0.1125788662 | X24: 0.0918946459 | Y24: 0.07282665455 | Z24: 0.0561790559 | AA24: 0.04205815802 | AB24: 0.03020956769 | AC24: 0.02030996021 | AD24: 0.01241403137 | AE24: 0.009630265131
B25: 12.5 | C25: 0.00623017308 | D25: 0.01002902057 | E25: 0.01907710038 | F25: 0.0295255439 | G25: 0.04166416743 | H25: 0.05588786773 | I25: 0.07243060287 | J25: 0.09114065725 | K25: 0.1112250595 | L25: 0.1311157213 | M25: 0.1487903903 | N25: 0.1627042566 | O25: 0.1723332152 | P25: 0.1778556692 | Q25: 0.1796200866 | R25: 0.17778441 | S25: 0.1721983857 | T25: 0.1625204398 | U25: 0.1485770658 | V25: 0.1308936894 | W25: 0.111011991 | X25: 0.09094831891 | Y25: 0.07226509799 | Z25: 0.05575131394 | AA25: 0.04155641083 | AB25: 0.02944535691 | AC25: 0.01902272865 | AD25: 0.009997444914 | AE25: 0.006206717311
B26: 11.25
B27: 10
B28: 8.75
B29: 7.5
B30: 6.25
B31: 5
B32: 3.75
B33: 2.5
B34: 1.25
B35: 0
C36: 0 | D36: =C36+cellsize -> 1.25 | E36: 2.5 | F36: 3.75 | G36: 5 | H36: 6.25 | I36: 7.5 | J36: 8.75 | K36: 10 | L36: 11.25 | M36: 12.5 | N36: 13.75 | O36: 15 | P36: 16.25 | Q36: 17.5 | R36: 18.75 | S36: 20 | T36: 21.25 | U36: 22.5 | V36: 23.75 | W36: 25 | X36: 26.25 | Y36: 27.5 | Z36: 28.75 | AA36: 30 | AB36: 31.25 | AC36: 32.5 | AD36: 33.75 | AE36: 35 | AF36: 36.25
C37: X

Sheet Flow Rate
A1: Flow Rate
C3: K: | D3: =0.004/100*24*3600 -> 3.456 | E3: ="[" & lunit & "/" & tunit & "]" -> [m/day]
C4: Problem length (transverse): | D4: 300 | E4: ="[" & lunit & "]" -> [m]
C5: Head boundary: | D5: 1 | E5: <-- Select 1 or 2
B8: xi: | C8: 0 | D8: 1.25 | E8: 2.5 | F8: 3.75 | G8: 5 | H8: 6.25 | I8: 7.5 | J8: 8.75 | K8: 10 | L8: 11.25
B9: Ai: | C9: =cellsize/2 -> 0.625 | D9: =cellsize -> 1.25 | E9: =cellsize -> 1.25 | F9: =cellsize -> 1.25 | G9: =cellsize -> 1.25 | H9: =cellsize -> 1.25 | I9: =cellsize -> 1.25 | J9: =cellsize -> 1.25 | K9: =cellsize -> 1.25 | L9: =cellsize/2 -> 0.625
B10: dh/dy: | C10: =(Main!$C$19 - Main!$C$20)/cellsize -> 0.03403108817 | D10: =(Main!$D$19 - Main!$D$20)/cellsize -> 0.03523143054 | E10: =(Main!$E$19 - Main!$E$20)/cellsize -> 0.0389394663 | F10: =(Main!$F$19 - Main!$F$20)/cellsize -> 0.04550032385 | G10: =(Main!$G$19 - Main!$G$20)/cellsize -> 0.05558472341 | H10: =(Main!$H$19 - Main!$H$20)/cellsize -> 0.07040008566 | I10: =(Main!$I$19 - Main!$I$20)/cellsize -> 0.09219859514 | J10: =(Main!$J$19 - Main!$J$20)/cellsize -> 0.1255962156 | K10: =(Main!$K$19 - Main!$K$20)/cellsize -> 0.1813577894 | L10: =(Main!$L$19 - Main!$L$20)/cellsize -> 0.2884587065
B11: vi: | C11: =k*C10 -> 0.1176114407 | D11: =k*D10 -> 0.121759824 | E11: =k*E10 -> 0.1345747955 | F11: =k*F10 -> 0.1572491192 | G11: =k*G10 -> 0.1921008041 | H11: =k*H10 -> 0.2433026961 | I11: =k*I10 -> 0.3186383448 | J11: =k*J10 -> 0.434060521 | K11: =k*K10 -> 0.6267725202 | L11: =k*L10 -> 0.9969132896
B12: qi: | C12: =C9*C11 -> 0.07350715044 | D12: =D9*D11 -> 0.1521997799 | E12: =E9*E11 -> 0.1682184944 | F12: =F9*F11 -> 0.196561399 | G12: =G9*G11 -> 0.2401260051 | H12: =H9*H11 -> 0.3041283701 | I12: =I9*I11 -> 0.398297931 | J12: =J9*J11 -> 0.5425756512 | K12: =K9*K11 -> 0.7834656503 | L12: =L9*L11 -> 0.623070806
B14: Unit Q: | C14: =SUM(C12:L12) -> 3.482151237 | D14: ="["&lunit&"^3/"&tunit&"/"&lunit&"]" -> [m^3/day/m]
B15: Total Q: | C15: =unitq*length -> 1044.645371 | D15: ="["&lunit&"^3/"&tunit&"]" -> [m^3/day]
